bitfinex-derivatives/quotes_BTCF0:USTF0_20210102
["timestamp","ask_amount","ask_price","bid_price","bid_amount"]
[1609628481670,0.29391158,32139.0,32137.0,0.03822074]
[1609628481870,0.29391158,32139.0,32133.0,0.038622]
[1609628482070,0.29391158,32139.0,32138.0,0.00040116]
[1609628482270,0.29391158,32139.0,32134.0,0.03862243]
[1609628482472,0.29391158,32139.0,32138.0,0.00040116]
[1609628482773,0.29391158,32139.0,32135.0,0.18043158]
[1609628482974,0.32391158,32139.0,32138.0,0.00040116]
[1609628483275,0.32391158,32139.0,32136.0,0.03862139]
[1609628483676,0.32391158,32139.0,32138.0,0.00040116]
[1609628483877,0.32391158,32139.0,32137.0,0.00040116]
[1609628484077,0.32391158,32139.0,32138.0,0.00040116]
[1609628484577,0.32391158,32139.0,32136.0,0.03862139]
[1609628484877,0.32391158,32139.0,32138.0,0.00040116]
[1609628485078,0.32391158,32139.0,32137.0,0.00040116]
[1609628485478,0.32391158,32139.0,32136.0,0.03862139]
[1609628485677,0.32391158,32139.0,32138.0,0.00040116]
[1609628485878,0.32391158,32139.0,32137.0,0.00040116]
[1609628486177,0.32391158,32139.0,32136.0,0.03862139]
[1609628486579,0.32391158,32139.0,32138.0,0.00040116]
[1609628486777,0.32391158,32139.0,32137.0,0.00040116]
[1609628486978,0.32391158,32139.0,32138.0,0.00040116]
[1609628487478,0.32391158,32139.0,32136.0,0.03862139]
[1609628487878,0.32391158,32139.0,32138.0,0.00040116]
[1609628488079,0.32391158,32139.0,32137.0,0.00040116]
[1609628488280,0.32391158,32139.0,32138.0,0.00040119]
[1609628488781,0.32391158,32139.0,32132.0,0.11505838]
[1609628489182,0.32391158,32139.0,32138.0,0.00040117]
[1609628489381,0.32391158,32139.0,32133.0,0.03862456]
[1609628489581,0.32391158,32139.0,32138.0,0.03862401]
[1609628489981,0.32391158,32139.0,32134.0,0.03862393]
[1609628490182,0.32391158,32139.0,32138.0,0.03862425]
[1609628490382,0.32391158,32139.0,32135.0,0.03862429]
[1609628490784,0.32391158,32139.0,32138.0,0.03862427]
[1609628490982,0.32391158,32139.0,32136.0,0.03862444]
[1609628491182,0.32391158,32139.0,32138.0,0.0386244]
[1609628491383,0.32391158,32139.0,32137.0,0.03862448]
[1609628491783,0.32391158,32139.0,32132.0,0.1150582]
[1609628491982,0.32391158,32139.0,32138.0,0.03862466]
[1609628492182,0.32391158,32139.0,32133.0,0.03862464]
[1609628492482,0.32391158,32139.0,32132.0,0.11505872]
[1609628492782,0.14348,32139.0,32134.0,0.03862485]
[1609628492982,0.14348,32139.0,32133.0,0.03862491]
[1609628493383,0.14348,32139.0,32135.0,0.03862491]
[1609628493583,0.14348,32139.0,32134.0,0.038625]
[1609628493783,0.14348,32139.0,32136.0,0.03862468]
[1609628494185,0.14348,32139.0,32135.0,0.03862509]
[1609628494385,0.14348,32139.0,32137.0,0.03862509]
[1609628494584,0.14348,32139.0,32136.0,0.03862518]
[1609628494884,0.18043158,32137.0,32132.0,0.07643389]
[1609628495484,0.18043158,32137.0,32132.0,0.1150588]
[1609628496989,0.18043158,32133.0,32132.0,0.1150588]
[1609628497186,0.18043158,32133.0,32132.0,0.03862491]
[1609628497586,0.18043158,32133.0,32132.0,0.11507596]
[1609628498889,0.18043158,32133.0,32132.0,0.03862491]
[1609628499492,0.18043158,32133.0,32116.0,2.0790999]
[1609628499691,5.1399,32131.0,32116.0,2.0790999]
[1609628499891,5.25061,32131.0,32117.0,0.11509508]
[1609628500092,5.25061,32131.0,32117.0,0.07646254]
[1609628500492,5.25061,32131.0,32118.0,0.03863788]
[1609628500695,5.25061,32131.0,32117.0,0.11510051]
[1609628500899,5.25061,32131.0,32119.0,0.03863799]
[1609628501095,5.25061,32131.0,32118.0,0.03863793]
[1609628501395,5.25061,32131.0,32117.0,0.115101]
[1609628501696,1.0,32129.0,32119.0,0.03863883]
[1609628501897,1.0,32129.0,32118.0,0.0386388]
[1609628502298,1.0,32129.0,32117.0,0.11510222]
[1609628502502,1.0,32129.0,32117.0,0.07646254]
[1609628502702,1.0,32129.0,32118.0,0.03864058]
[1609628503002,0.30413158,32119.0,32117.0,0.11510315]
[1609628503202,0.30413158,32119.0,32117.0,0.07646254]
[1609628503604,0.30413158,32119.0,32117.0,0.0386429]
[1609628503802,0.30413158,32119.0,32118.0,0.03864297]
[1609628504406,0.30413158,32119.0,32117.0,0.03864707]
[1609628504606,0.30413158,32119.0,32118.0,0.03864544]
[1609628505005,5.01223158,32119.0,32118.0,0.03824404]
[1609628505206,5.01223158,32119.0,32110.0,0.18043158]
[1609628505408,5.01223158,32119.0,32118.0,0.03864591]
[1609628505607,5.01223158,32119.0,32111.0,0.03864559]
[1609628506006,5.01223158,32119.0,32118.0,0.03864556]
[1609628506205,5.01223158,32119.0,32112.0,0.03864638]
[1609628506406,5.01223158,32119.0,32110.0,0.18043158]
[1609628506407,5.01223158,32119.0,32118.0,0.03864653]
[1609628506608,5.01223158,32119.0,32113.0,0.03864578]
[1609628507007,0.18043158,32114.0,32111.0,0.03864571]
[1609628507209,0.18043158,32114.0,32110.0,0.18043158]
[1609628507407,0.18043158,32114.0,32112.0,0.00040141]
[1609628507708,0.18043158,32114.0,32111.0,0.03864633]
[1609628508009,0.18043158,32114.0,32113.0,0.00040141]
[1609628508208,0.18043158,32114.0,32112.0,0.00040141]
[1609628508508,0.18043158,32114.0,32111.0,0.03864633]
[1609628508909,0.18043158,32114.0,32113.0,0.00040141]
[1609628509109,0.18043158,32114.0,32112.0,0.00040141]
[1609628509310,0.18043158,32114.0,32113.0,0.00040144]
[1609628509909,0.18043158,32114.0,32111.0,0.00040144]
[1609628510113,0.18043158,32114.0,32113.0,0.00040144]
[1609628510311,0.18043158,32114.0,32112.0,0.00040144]
[1609628510613,0.18043158,32114.0,32111.0,0.00040144]
[1609628510814,0.18043158,32114.0,32113.0,0.00040144]
[1609628511115,0.18043158,32114.0,32111.0,0.00040144]
[1609628511416,0.18043158,32114.0,32113.0,0.00040148]
[1609628511616,0.18043158,32114.0,32112.0,0.0004015]
[1609628512017,0.18043158,32114.0,32111.0,0.0004015]
[1609628512219,0.18043158,32114.0,32110.0,0.18043158]
[1609628512419,0.18043158,32114.0,32112.0,0.0004015]
[1609628512719,0.18043158,32114.0,32111.0,0.0004015]
[1609628512920,0.18043158,32114.0,32113.0,0.0004015]
[1609628513221,0.18043158,32114.0,32111.0,0.0004015]
[1609628513421,0.18043158,32114.0,32113.0,0.0004015]
[1609628513822,0.18043158,32114.0,32111.0,0.0004015]
[1609628514022,0.18043158,32114.0,32113.0,0.0004015]
[1609628514221,0.18043158,32114.0,32112.0,0.00040153]
[1609628514523,0.18043158,32114.0,32111.0,0.00040153]
[1609628514825,0.18043158,32114.0,32113.0,0.00040153]
[1609628515024,0.18043158,32114.0,32112.0,0.00040153]
[1609628515325,0.18043158,32114.0,32111.0,0.00040153]
[1609628515727,0.18043158,32114.0,32113.0,0.00040153]
[1609628515927,0.18043158,32114.0,32112.0,0.00040153]
[1609628516127,0.18043158,32114.0,32113.0,0.00040153]
[1609628516728,0.77273158,32114.0,32111.0,0.00040153]
[1609628516928,0.77273158,32114.0,32113.0,0.00040153]
[1609628517128,0.77273158,32114.0,32112.0,0.00040153]
[1609628517527,0.77273158,32114.0,32111.0,0.00040153]
[1609628517728,0.77273158,32114.0,32113.0,0.00040153]
[1609628517928,0.77273158,32114.0,32112.0,0.00040153]
[1609628518328,0.77273158,32114.0,32113.0,0.00040157]
[1609628518828,0.77273158,32114.0,32111.0,0.00040157]
[1609628519028,0.77273158,32114.0,32113.0,0.00040157]
[1609628519228,0.77273158,32114.0,32112.0,0.00040157]
[1609628519527,0.77273158,32114.0,32111.0,0.00040157]
[1609628519729,0.77273158,32114.0,32113.0,0.00040155]
[1609628520030,0.77273158,32114.0,32111.0,0.00040155]
[1609628520229,0.77273158,32114.0,32113.0,0.00040155]
[1609628520529,0.77273158,32114.0,32111.0,0.00040155]
[1609628521831,0.77273158,32114.0,32106.0,0.0386608]
[1609628522833,0.18043158,32114.0,32106.0,0.0386608]
[1609628523031,5.08893158,32107.0,32106.0,0.0386608]
[1609628523232,5.22791158,32107.0,32105.0,0.18043158]
[1609628523433,5.22791158,32107.0,32106.0,0.03826054]
[1609628523635,4.55851158,32107.0,32095.0,0.07652108]
[1609628523833,4.55851158,32107.0,32089.0,4.491]
[1609628524033,4.55851158,32107.0,32096.0,0.03866345]
[1609628524234,4.55851158,32107.0,32090.0,0.03866663]
[1609628524534,0.02,32106.0,32097.0,0.0386672]
[1609628524735,0.02,32106.0,32091.0,0.03866897]
[1609628524935,0.18043158,32092.0,32091.0,0.21910055]
[1609628525137,0.18043158,32092.0,32091.0,0.18043158]
[1609628525335,0.18043158,32092.0,32091.0,0.03866881]
[1609628525534,4.59843158,32092.0,32091.0,0.03866881]
[1609628525935,4.59843158,32092.0,32086.0,0.03866864]
[1609628526135,4.59843158,32092.0,32091.0,0.03866901]
[1609628526336,4.59843158,32092.0,32087.0,0.03867038]
[1609628526536,4.59843158,32092.0,32091.0,0.00040169]
[1609628526736,4.59843158,32092.0,32091.0,0.03867309]
[1609628526936,4.59843158,32092.0,32086.0,0.03867463]
[1609628527137,4.59843158,32092.0,32091.0,0.00040171]
[1609628527538,4.59843158,32092.0,32087.0,0.03867488]
[1609628527739,4.59843158,32092.0,32091.0,0.00040171]
[1609628527937,4.59843158,32092.0,32088.0,0.03867478]
[1609628528137,4.59843158,32092.0,32088.0,0.00040171]
[1609628528338,4.59843158,32092.0,32091.0,0.00040171]
[1609628528538,4.59843158,32092.0,32089.0,0.00040171]
[1609628528738,4.59843158,32092.0,32091.0,0.00040173]
[1609628529139,4.59843158,32092.0,32090.0,0.00040173]
[1609628529339,4.59843158,32092.0,32091.0,0.00040173]
[1609628529740,4.59843158,32092.0,32086.0,0.03868532]
[1609628530141,0.18043158,32092.0,32086.0,0.00040181]
[1609628530343,0.18043158,32092.0,32087.0,0.00040181]
[1609628530741,4.3709,32088.0,32087.0,0.00040181]
[1609628530942,4.3709,32088.0,32071.0,3.7412]
[1609628531142,0.18043158,32088.0,32087.0,0.00040185]
[1609628531343,3.72233158,32088.0,32072.0,0.03868941]
[1609628531541,0.18043158,32088.0,32072.0,0.00040185]
[1609628531741,0.18043158,32088.0,32087.0,0.00040187]
[1609628531941,4.31923158,32088.0,32073.0,0.00040189]
[1609628532141,5.31923158,32088.0,32087.0,0.00040189]
[1609628532341,4.31923158,32088.0,32087.0,0.00040189]
[1609628532542,4.31923158,32088.0,32067.0,0.00040193]
[1609628532741,1.0,32087.0,32066.0,2.07111476]
[1609628532943,1.16781,32087.0,32068.0,0.00040204]
[1609628533142,0.32014158,32069.0,32068.0,0.00040204]
[1609628533341,0.32014158,32069.0,32066.0,1.79811476]
[1609628533545,3.6542,32068.0,32066.0,1.79811476]
[1609628533742,3.6542,32068.0,32067.0,0.00040207]
[1609628534242,3.6542,32068.0,32057.0,0.00040211]
[1609628535043,0.18043158,32058.0,32057.0,0.00040211]
[1609628535244,0.33965158,32058.0,32057.0,0.00040211]
[1609628535447,4.54895158,32058.0,32057.0,0.00040211]
[1609628535643,4.54895158,32058.0,32054.0,0.00039995]
[1609628535843,4.54895158,32058.0,32057.0,0.00039995]
[1609628536043,0.33965158,32058.0,32057.0,0.00039995]
[1609628536245,0.33965158,32058.0,32055.0,0.00039995]
[1609628536444,0.33965158,32058.0,32057.0,0.00039995]
[1609628536646,0.33965158,32058.0,32047.0,3.712]
[1609628536843,0.33965158,32058.0,32027.0,0.16048]
[1609628537042,0.15922,32058.0,32048.0,0.18043158]
[1609628537244,3.7673,32053.0,32048.0,0.18043158]
[1609628537444,3.7673,32053.0,32049.0,0.00040002]
[1609628538245,3.7673,32053.0,32048.0,0.18043158]
[1609628539045,0.18043158,32049.0,32048.0,0.18043158]
[1609628539246,0.83993158,32049.0,32048.0,0.18043158]
[1609628539547,0.97838158,32049.0,32048.0,0.18043158]
[1609628539750,0.97838158,32049.0,32027.0,0.16048]
[1609628539952,0.31888158,32049.0,32027.0,0.16048]
[1609628540149,4.5289,32039.0,32028.0,0.00040006]
[1609628540352,4.65182,32039.0,32028.0,0.00040006]
[1609628540953,4.65182,32039.0,32027.0,0.00040008]
[1609628541150,0.12292,32039.0,32035.0,0.18043158]
[1609628541355,0.12292,32039.0,32037.0,4.1464]
[1609628541850,0.12292,32039.0,32038.0,0.00040006]
[1609628542453,0.12292,32039.0,32036.0,0.00040006]
[1609628542650,0.12292,32039.0,32038.0,0.00040006]
[1609628543053,0.12292,32039.0,32036.0,0.00040006]
[1609628543251,0.12292,32039.0,32038.0,0.00040006]
[1609628543450,0.12292,32039.0,32037.0,0.00040006]
[1609628543851,0.12292,32039.0,32036.0,0.00040006]
[1609628544051,0.12292,32039.0,32038.0,0.00040006]
[1609628544251,0.12292,32039.0,32037.0,0.00040008]
[1609628544650,0.12292,32039.0,32036.0,0.00040008]
[1609628544852,0.12292,32039.0,32038.0,0.0004001]
[1609628545051,0.12292,32039.0,32037.0,0.0004001]
[1609628545352,0.30335158,32039.0,32038.0,0.0004001]
[1609628545952,0.33335158,32039.0,32036.0,0.00040015]
[1609628546152,0.33335158,32039.0,32035.0,0.18043158]
[1609628546758,0.33335158,32039.0,32036.0,0.00040014]
[1609628547353,0.5895,32038.0,32036.0,0.00040014]
[1609628547554,0.33335158,32039.0,32006.0,0.1207]
[1609628547753,0.33335158,32039.0,32037.0,0.00040017]
[1609628547954,0.33335158,32039.0,32007.0,0.03874772]
[1609628548155,4.9321,32036.0,32007.0,0.03874772]
[1609628548354,4.9321,32036.0,32003.0,4.7222]
[1609628548553,0.0931,32035.0,32008.0,0.00040022]
[1609628548754,0.0931,32035.0,31999.0,0.1331]
[1609628548755,0.0931,32035.0,32004.0,0.00040025]
[1609628548953,0.0931,32035.0,32011.0,4.8673]
[1609628549153,0.0931,32035.0,32012.0,0.18043158]
[1609628549353,0.0931,32035.0,31988.0,0.1232]
[1609628549553,4.73155,32014.0,31991.0,5.0871]
[1609628549753,0.11365,32014.0,31968.0,0.2915]
[1609628549953,4.0452,32001.0,31989.0,0.03877451]
[1609628550154,4.16855,32001.0,31973.0,4.2072]
[1609628550354,4.16855,32001.0,31990.0,0.00040052]
[1609628550655,4.16855,32001.0,31974.0,0.03878227]
[1609628550858,0.12335,32001.0,31991.0,0.00040058]
[1609628551256,4.61667158,31992.0,31975.0,0.0004006]
[1609628551456,0.34147158,31992.0,31965.0,2.03333186]
[1609628551657,0.34147158,31992.0,31976.0,0.00040068]
[1609628552057,0.34147158,31992.0,31935.0,2.21880489]
[1609628552058,3.5634,31967.0,31966.0,0.00040087]
[1609628552265,3.73135,31967.0,31938.0,2.15909448]
[1609628552468,3.73135,31967.0,31966.0,0.00040103]
[1609628552677,1.16795,31967.0,31938.0,0.71870448]
[1609628552862,1.16795,31967.0,31910.0,2.14867916]
[1609628553067,1.16795,31967.0,31939.0,0.00040123]
[1609628553263,1.26225,31967.0,31910.0,2.02782916]
[1609628553465,0.2209445,31954.0,31910.0,2.02782916]
[1609628553665,1.11148,31940.0,31910.0,2.02782916]
[1609628553863,1.0,31939.0,31900.0,2.58087348]
[1609628554064,1.0,31939.0,31882.0,0.3008]
[1609628554065,3.8014,31904.0,31882.0,0.3008]
[1609628554262,1.0,31903.0,31882.0,0.3008]
[1609628554462,1.0,31903.0,31822.0,2.75904193]
[1609628554663,4.0152,31897.0,31826.0,4.5155]
[1609628554864,1.11281,31896.0,31816.0,0.2831]
[1609628555062,4.829,31864.0,31816.0,0.2831]
[1609628555263,4.98842,31864.0,31816.0,0.2831]
[1609628555464,0.15942,31864.0,31816.0,0.2831]
[1609628555663,4.1198,31836.0,31816.0,0.2831]
[1609628555863,0.13942,31856.0,31816.0,5.1201]
[1609628556072,0.13942,31856.0,31816.0,5.24352]
[1609628556664,0.13942,31856.0,31816.0,0.40652]
[1609628556863,0.13942,31856.0,31822.0,4.9306]
[1609628557263,0.13942,31856.0,31843.0,0.18043158]
[1609628557464,0.13942,31856.0,31844.0,4.9301]
[1609628557664,0.13942,31856.0,31828.0,0.12259]
[1609628557862,0.13942,31856.0,31832.0,4.882]
[1609628558264,0.46116802,31855.0,31832.0,4.882]
[1609628558464,0.46116802,31855.0,31828.0,0.12259]
[1609628558667,0.19526802,31855.0,31845.0,4.5046]
[1609628559067,0.19526802,31855.0,31828.0,0.12259]
[1609628559268,0.19526802,31855.0,31854.0,0.18043158]
[1609628559669,0.69175203,31869.0,31855.0,3.5703]
[1609628559869,0.69175203,31869.0,31854.0,0.18043158]
[1609628560069,0.81815203,31869.0,31863.0,4.582]
[1609628560271,0.81815203,31869.0,31854.0,0.18043158]
[1609628560471,0.81815203,31869.0,31868.0,5.1876]
[1609628560670,0.0952,31913.0,31868.0,5.1876]
[1609628560871,0.0932,31934.0,31868.0,5.1876]
[1609628561272,0.18043158,31926.0,31901.0,0.18043158]
[1609628561470,1.0,31948.0,31901.0,0.18043158]
[1609628561670,1.0,31948.0,31901.0,3.99303158]
[1609628561871,0.55995872,31903.0,31901.0,3.99303158]
[1609628562072,0.55995872,31903.0,31901.0,4.11457158]
[1609628562272,1.0,31948.0,31901.0,3.34698799]
[1609628562473,1.0,31948.0,31901.0,0.12154]
[1609628562675,1.0,31948.0,31925.0,4.888]
[1609628562874,2.30275076,31971.0,31925.0,4.888]
[1609628563275,0.18043158,31936.0,31934.0,0.18043158]
[1609628563677,0.18043158,31936.0,31933.0,3.56663666]
[1609628563877,0.15586,31939.0,31933.0,3.56663666]
[1609628564477,0.15586,31939.0,31921.0,0.16442]
[1609628565278,0.18043158,31922.0,31921.0,0.16442]
[1609628565477,0.18043158,31922.0,31909.0,0.11128]
[1609628565879,0.31969158,31922.0,31909.0,0.11128]
[1609628566281,0.31969158,31922.0,31904.0,3.12575177]
[1609628567280,0.18043158,31908.0,31904.0,3.12575177]
[1609628567880,0.13904,31911.0,31903.0,0.18043158]
[1609628568380,0.13904,31911.0,31888.0,3.8895]
[1609628568781,13.26779583,31910.0,31888.0,3.23768381]
[1609628568982,13.26779583,31910.0,28785.0,0.0720754]
[1609628569182,0.18043158,31886.0,31871.0,0.18043158]
[1609628569583,0.35353158,31886.0,31871.0,0.18043158]
[1609628569782,0.35353158,31886.0,31748.0,2.0635]
[1609628569783,0.35353158,31886.0,31859.0,3.9929]
[1609628569982,0.35353158,31886.0,31748.0,1.5331]
[1609628570384,4.52023017,31872.0,31748.0,1.5331]
[1609628570584,4.52023017,31872.0,31749.0,0.00040231]
[1609628570784,4.52023017,31872.0,31749.0,0.19921751]
[1609628570984,4.52023017,31872.0,31750.0,1.0]
[1609628571184,4.52023017,31872.0,31871.0,0.18043158]
[1609628571384,1.57789327,31874.0,31871.0,0.18043158]
[1609628571985,1.57789327,31874.0,31861.0,3.6963]
[1609628572185,1.57789327,31874.0,31858.0,0.15092]
[1609628572786,1.57789327,31874.0,31846.0,4.5636]
[1609628575190,0.18043158,31847.0,31846.0,4.5636]
[1609628575390,0.18043158,31847.0,31844.0,0.18043158]
[1609628575590,2.67172671,31847.0,31816.0,4.0372]
[1609628575990,2.49129513,31847.0,31816.0,4.0372]
[1609628576493,2.4841006,31845.0,31767.0,0.0211]
[1609628576693,2.4841006,31845.0,31805.0,3.5825]
[1609628576893,0.00325431,31838.0,31805.0,3.5825]
[1609628577092,0.00325431,31838.0,31828.0,4.849]
[1609628577292,0.00325431,31838.0,31837.0,0.18043158]
[1609628577491,0.00325431,31838.0,31837.0,5.00137158]
[1609628578294,0.55803621,31842.0,31837.0,5.00137158]
[1609628578494,0.55803621,31842.0,31837.0,5.00177406]
[1609628578695,0.08024602,31844.0,31838.0,0.00040248]
[1609628578894,0.55863266,31857.0,31838.0,0.03896975]
[1609628579096,0.21515158,31850.0,31838.0,0.03896975]
[1609628579296,0.21515158,31850.0,31849.0,0.18043158]
[1609628579495,0.21515158,31850.0,31849.0,0.33971158]
[1609628579696,0.21515158,31850.0,31849.0,0.34011395]
[1609628580095,0.78221542,31892.0,31849.0,0.37866256]
[1609628580295,0.78221542,31892.0,31868.0,4.3548]
[1609628580495,0.78221542,31892.0,31850.0,0.03894487]
[1609628580695,0.78221542,31892.0,31874.0,4.4268]
[1609628580896,0.78278454,31876.0,31874.0,0.14514]
[1609628581095,0.78278454,31876.0,31874.0,0.14554214]
[1609628581296,0.78278454,31876.0,31874.0,0.32597372]
[1609628581597,0.78278454,31876.0,31874.0,0.36451643]
[1609628582198,0.41858454,31876.0,31874.0,0.36451643]
[1609628582599,0.41858454,31876.0,31875.0,0.03894383]
[1609628583199,0.8766999,31881.0,31875.0,0.03894383]
[1609628583598,0.1385999,31881.0,31875.0,0.03894383]
[1609628583801,1.10109057,31914.0,31875.0,0.03894383]
[1609628584202,1.10109057,31914.0,31890.0,4.03856]
[1609628584402,1.11210131,31927.0,31890.0,0.10626]
[1609628584602,1.11210131,31927.0,31897.0,4.3606]
[1609628584801,1.11210131,31927.0,31897.0,4.49072]
[1609628585001,1.11210131,31927.0,31898.0,0.00040216]
[1609628585301,0.18043158,31919.0,31918.0,0.18043158]
[1609628585505,0.18043158,31919.0,31918.0,3.71273158]
[1609628585702,0.14072,31921.0,31918.0,3.71273158]
[1609628585902,0.14072,31921.0,31918.0,3.60687368]
[1609628586102,0.14072,31921.0,31919.0,0.0004021]
[1609628586504,0.46051748,31919.0,31904.0,3.85775315]
[1609628586703,0.46051748,31919.0,31906.0,0.11446]
[1609628586904,0.46054115,31920.0,31905.0,0.00040211]
[1609628587103,0.46054115,31920.0,31907.0,0.00040213]
[1609628587303,0.18043158,31908.0,31907.0,0.00040213]
[1609628587503,0.18043158,31908.0,31905.0,0.00040215]
[1609628587704,0.32827158,31908.0,31904.0,3.30056723]
[1609628587903,0.32827158,31908.0,31906.0,0.00040213]
[1609628588303,0.32827158,31908.0,31905.0,0.00040213]
[1609628588504,0.14784,31908.0,31907.0,0.00040213]
[1609628588704,0.14784,31908.0,31906.0,0.00040213]
[1609628589104,0.46057861,31918.0,31907.0,0.00040207]
[1609628589304,0.46057861,31918.0,31917.0,0.18043158]
[1609628589904,0.46057861,31918.0,31917.0,0.18083359]
[1609628590507,0.46057861,31918.0,31917.0,0.00040201]
[1609628590906,0.46057861,31918.0,31913.0,0.00040199]
[1609628591105,0.46057861,31918.0,31917.0,0.00040201]
[1609628591305,0.18043158,31918.0,31912.0,4.20299274]
[1609628591705,0.18043158,31918.0,31913.0,0.00040197]
[1609628593407,0.18043158,31914.0,31913.0,0.00040197]
[1609628593806,0.18043158,31914.0,31904.0,0.00040205]
[1609628593807,0.34426158,31914.0,31904.0,0.00040205]
[1609628594006,0.34426158,31914.0,31913.0,0.00040205]
[1609628594409,0.34426158,31914.0,31905.0,0.00040208]
[1609628594608,0.34426158,31914.0,31913.0,0.00040208]
[1609628594809,0.34426158,31914.0,31906.0,0.00039036]
[1609628595209,0.34426158,31914.0,31913.0,0.00039036]
[1609628595411,0.34426158,31914.0,31907.0,0.00039036]
[1609628595611,0.34426158,31914.0,31913.0,0.00039036]
[1609628595811,0.34426158,31914.0,31908.0,0.00039036]
[1609628596211,0.34426158,31914.0,31900.0,0.00039036]
[1609628596413,0.80478513,31914.0,31899.0,4.2003]
[1609628596814,0.80478513,31914.0,31901.0,0.00039036]
[1609628597013,0.80478513,31914.0,31900.0,0.00039036]
[1609628597213,0.80478513,31914.0,31902.0,0.00039036]
[1609628597415,0.18043158,31903.0,31901.0,0.00039036]
[1609628597616,0.35169158,31903.0,31899.0,3.62458488]
[1609628597815,0.35169158,31903.0,31900.0,0.00039036]
[1609628599118,1.5238807,31903.0,31886.0,0.0003904]
[1609628599318,1.34344912,31903.0,31901.0,0.0003904]
[1609628599718,1.52342106,31901.0,31871.0,4.2892]
[1609628600117,1.52342106,31901.0,31872.0,0.0003906]
[1609628600319,5.459787,31902.0,31871.0,4.00117727]
[1609628600919,0.71320939,31876.0,31871.0,3.42504682]
[1609628601119,0.86627939,31876.0,31853.0,3.8678]
[1609628601320,0.18043158,31854.0,31853.0,3.8678]
[1609628601521,0.18043158,31854.0,31838.0,4.0938]
[1609628601720,0.18043158,31854.0,31853.0,0.03896582]
[1609628601921,0.18043158,31854.0,31839.0,0.1161026]
[1609628602322,0.18043158,31854.0,31838.0,3.7977]
[1609628602523,0.18043158,31854.0,31840.0,0.03896418]
[1609628602721,0.18043158,31854.0,31839.0,0.03896572]
[1609628603122,0.18043158,31854.0,31823.0,0.07715871]
[1609628603321,0.16845,31857.0,31840.0,0.0003909]
[1609628603521,0.16845,31857.0,31812.0,0.18043158]
[1609628603522,3.80475,31857.0,31824.0,0.03898117]
[1609628603921,3.80475,31857.0,31841.0,0.00039094]
[1609628604122,0.14738,31831.0,31825.0,0.03859353]
[1609628604322,0.14738,31831.0,31814.0,0.03861502]
[1609628604522,4.2219,31826.0,31814.0,0.03861502]
[1609628604723,4.2219,31826.0,31797.0,0.15207]
[1609628604924,1.0,31817.0,31815.0,0.0003913]
[1609628605124,1.0,31817.0,31798.0,0.00039134]
[1609628605323,0.18043158,31799.0,31798.0,0.00039134]
[1609628605524,0.18043158,31799.0,31772.0,0.18043158]
[1609628605724,0.18043158,31799.0,31798.0,0.00039143]
[1609628605923,4.04726158,31799.0,31773.0,0.0390309]
[1609628606125,0.34686158,31799.0,31773.0,0.0390309]
[1609628606326,5.23376158,31799.0,31798.0,0.00039149]
[1609628606526,5.23376158,31799.0,31770.0,0.0145]
[1609628606527,0.02,31772.0,31770.0,0.0145]
[1609628606927,0.18655,31772.0,31770.0,0.0145]
[1609628607128,0.18655,31772.0,31771.0,0.03902239]
[1609628607326,0.36698158,31772.0,31771.0,0.00039135]
[1609628607527,0.36698158,31772.0,31735.0,0.12527]
[1609628607729,0.38128158,31772.0,31727.0,0.10681]
[1609628608127,0.38128158,31772.0,31728.0,0.00039191]
[1609628608328,0.38128158,31772.0,31715.0,0.11889]
[1609628608528,0.20085,31772.0,31697.0,0.14866]
[1609628608931,1.0,31740.0,31697.0,0.14866]
[1609628609128,1.0,31740.0,31673.0,0.15753]
[1609628609328,0.18043158,31674.0,31673.0,0.15753]
[1609628610130,0.18043158,31674.0,31515.0,0.1771]
[1609628610434,0.0947,31673.0,31515.0,0.1771]
[1609628610633,0.0947,31673.0,31572.0,0.1771]
[1609628610830,0.0947,31673.0,31658.0,3.84667153]
[1609628611030,0.33862158,31674.0,31658.0,3.80737153]
[1609628611430,0.18043158,31659.0,31658.0,2.02207153]
[1609628611631,0.30814158,31659.0,31658.0,2.02207153]
[1609628612033,0.30814158,31659.0,31645.0,4.19348589]
[1609628612034,0.30814158,31659.0,31645.0,0.11943]
[1609628612432,0.30814158,31659.0,31617.0,3.91126445]
[1609628613036,1.1528585,31659.0,31617.0,3.91126445]
[1609628613235,1.1528585,31659.0,31458.0,0.356]
[1609628613236,4.03071039,31659.0,31458.0,0.356]
[1609628613433,3.85027881,31659.0,31599.0,0.18043158]
[1609628613633,3.85027881,31659.0,31599.0,0.35403158]
[1609628613935,0.58023209,31605.0,31599.0,0.35403158]
[1609628614133,0.98420644,31618.0,31599.0,0.35403158]
[1609628614333,0.0957,31617.0,31599.0,0.35403158]
[1609628615336,0.54219437,31619.0,31616.0,0.18043158]
[1609628615738,0.54219437,31619.0,31616.0,0.30120158]
[1609628616137,0.07138299,33649.0,31616.0,0.30120158]
[1609628616338,0.0942,31747.0,31616.0,0.30120158]
[1609628616539,0.1771,31895.0,31616.0,0.30120158]
[1609628616738,0.0951,31762.0,31616.0,0.30120158]
[1609628616938,1.0,31744.0,31616.0,0.30120158]
[1609628617138,1.56480222,31641.0,31617.0,0.0942]
[1609628617347,1.55190222,31641.0,31617.0,0.0942]
[1609628617541,1.28160222,31641.0,31640.0,0.18043158]
[1609628617740,1.27400222,31641.0,31640.0,0.18043158]
[1609628617941,0.34220222,31641.0,31640.0,0.18043158]
[1609628618145,1.80192452,31707.0,31640.0,0.18043158]
[1609628618342,1.78622452,31707.0,31640.0,0.27663158]
[1609628618541,1.28022452,31707.0,31640.0,0.27663158]
[1609628618742,1.21832452,31707.0,31641.0,0.0947]
[1609628618942,0.93672452,31707.0,31641.0,0.0947]
[1609628619142,0.73032452,31707.0,31641.0,0.0947]
[1609628619346,0.56782452,31707.0,31706.0,0.18043158]
[1609628619543,2.08098669,31795.0,31706.0,0.18043158]
[1609628619743,2.08098669,31795.0,31706.0,0.33130158]
[1609628620246,0.2189,31771.0,31706.0,0.33130158]
[1609628620443,0.2189,31771.0,31706.0,0.42640158]
[1609628620645,0.027,31772.0,31706.0,0.42640158]
[1609628621445,0.18043158,31761.0,31706.0,0.24597]
[1609628621646,0.34175158,31761.0,31706.0,0.24597]
[1609628622247,0.34175158,31761.0,31706.0,0.15087]
[1609628622848,0.0145,31759.0,31706.0,0.15087]
[1609628623048,1.0,31739.0,31656.0,2.31662498]
[1609628623250,1.12707,31739.0,31656.0,2.31662498]
[1609628623449,1.12707,31739.0,31683.0,0.18043158]
[1609628623650,1.12707,31739.0,31678.0,0.14642]
[1609628624450,0.0935,31738.0,31678.0,0.14642]
[1609628624854,0.0935,31738.0,31656.0,2.31662498]
[1609628625052,1.15953,31690.0,31623.0,2.31838979]
[1609628625453,0.18043158,31670.0,31654.0,0.18043158]